[Event "Live Chess"]
[Site "Chess.com"]
[Date "2023.05.21"]
[Round "-"]
[White "MJMykh"]
[Black "Richardallis"]
[Result "0-1"]
[WhiteElo "1183"]
[BlackElo "1877"]
[TimeControl "300"]
[EndTime "2:43:44 PDT"]
[Termination "Richardallis won by checkmate"]

1. e4 {[%clk 0:04:58.5]} 1... d5 {[%clk 0:04:57.8]} 2. exd5 {[%clk 0:04:57.3]}
2... Nf6 {[%clk 0:04:57.1]} 3. Nc3 {[%clk 0:04:56.5]} 3... Nxd5 {[%clk
0:04:56.5]} 4. Nxd5 {[%clk 0:04:56.3]} 4... Qxd5 {[%clk 0:04:56]} 5. Nf3 {[%clk
0:04:55.9]} 5... Bf5 {[%clk 0:04:55.4]} 6. Bb5+ {[%clk 0:04:54.5]} 6... Qxb5
{[%clk 0:04:53.9]} 7. d3 {[%clk 0:04:51.6]} 7... e6 {[%clk 0:04:52.4]} 8. O-O
{[%clk 0:04:50.7]} 8... Bd6 {[%clk 0:04:51.4]} 9. c4 {[%clk 0:04:45.9]} 9... Qa5
{[%clk 0:04:49.4]} 10. Bd2 {[%clk 0:04:42.1]} 10... Qa6 {[%clk 0:04:45.6]} 11.
b4 {[%clk 0:04:38.7]} 11... Bxd3 {[%clk 0:04:42.8]} 12. b5 {[%clk 0:04:36.7]}
12... Qa3 {[%clk 0:04:33.2]} 13. Re1 {[%clk 0:04:30.4]} 13... Bxc4 {[%clk
0:04:28.9]} 14. Nd4 {[%clk 0:04:15.5]} 14... Qd3 {[%clk 0:04:19]} 15. Be3 {[%clk
0:04:04.6]} 15... Qxd1 {[%clk 0:04:15.4]} 16. Rexd1 {[%clk 0:04:04.3]} 16... O-O
{[%clk 0:04:11.2]} 17. a4 {[%clk 0:04:03.2]} 17... Nd7 {[%clk 0:04:09.5]} 18.
Rdc1 {[%clk 0:03:57.9]} 18... Bd5 {[%clk 0:04:07.6]} 19. a5 {[%clk 0:03:49.2]}
19... Be5 {[%clk 0:04:00.4]} 20. h3 {[%clk 0:03:42.8]} 20... c5 {[%clk
0:03:54.1]} 21. Nxe6 {[%clk 0:03:38]} 21... fxe6 {[%clk 0:03:50]} 22. Rab1
{[%clk 0:03:33.7]} 22... c4 {[%clk 0:03:46.6]} 23. b6 {[%clk 0:03:28.9]} 23...
axb6 {[%clk 0:03:45.2]} 24. axb6 {[%clk 0:03:28.6]} 24... Ra3 {[%clk 0:03:41.1]}
25. g3 {[%clk 0:03:25.9]} 25... c3 {[%clk 0:03:37.4]} 26. Kf1 {[%clk 0:03:19.2]}
26... Be4 {[%clk 0:03:35.3]} 27. Rb5 {[%clk 0:03:16]} 27... c2 {[%clk
0:03:32.9]} 28. Ke2 {[%clk 0:03:13.9]} 28... Bd3+ {[%clk 0:03:29.4]} 29. Kd2
{[%clk 0:03:12.2]} 29... Bxb5 {[%clk 0:03:28.9]} 30. Kxc2 {[%clk 0:03:10]} 30...
Rc8+ {[%clk 0:03:27.1]} 31. Kd1 {[%clk 0:03:08.4]} 31... Rd3+ {[%clk 0:03:20.2]}
32. Ke2 {[%clk 0:03:04.2]} 32... Rxe3+ {[%clk 0:03:18.8]} 33. Kd2 {[%clk
0:03:02.9]} 33... Rd3+ {[%clk 0:03:16.8]} 34. Ke2 {[%clk 0:03:01.6]} 34... Rxc1
{[%clk 0:03:16.3]} 35. f4 {[%clk 0:02:59.2]} 35... Rxg3+ {[%clk 0:03:13.9]} 36.
Kf2 {[%clk 0:02:56.6]} 36... Bxf4 {[%clk 0:03:13.2]} 37. h4 {[%clk 0:02:54.9]}
37... Rc2+ {[%clk 0:03:11.6]} 38. Ke1 {[%clk 0:02:53.6]} 38... Rg1# {[%clk
0:03:10.2]} 0-1

[Event "Live Chess"]
[Site "Chess.com"]
[Date "2023.05.21"]
[Round "-"]
[White "Doge_Dandolo"]
[Black "lHolyDiverl"]
[Result "1-0"]
[WhiteElo "1857"]
[BlackElo "555"]
[TimeControl "300"]
[EndTime "2:43:49 PDT"]
[Termination "Doge_Dandolo won by resignation"]

1. Nf3 {[%clk 0:04:57.7]} 1... d5 {[%clk 0:04:58]} 2. d4 {[%clk 0:04:55.4]} 2...
Nc6 {[%clk 0:04:56.6]} 3. h3 {[%clk 0:04:53.1]} 3... Bf5 {[%clk 0:04:55]} 4. Nc3
{[%clk 0:04:51.6]} 4... e6 {[%clk 0:04:53.6]} 5. Bf4 {[%clk 0:04:50.5]} 5... a6
{[%clk 0:04:50.5]} 6. e3 {[%clk 0:04:49.4]} 6... Nb4 {[%clk 0:04:48.6]} 7. Bd3
{[%clk 0:04:47]} 7... Nxd3+ {[%clk 0:04:44.2]} 8. cxd3 {[%clk 0:04:46]} 8... Bb4
{[%clk 0:04:05.3]} 9. O-O {[%clk 0:04:40.2]} 9... Nf6 {[%clk 0:03:59.9]} 10. a3
{[%clk 0:04:32.7]} 10... Bd6 {[%clk 0:03:57.8]} 11. Ne5 {[%clk 0:04:30.1]} 11...
O-O {[%clk 0:03:45.3]} 12. g4 {[%clk 0:04:24.9]} 12... Bg6 {[%clk 0:03:09.7]}
13. h4 {[%clk 0:04:20.6]} 13... h5 {[%clk 0:03:02.7]} 14. g5 {[%clk 0:04:16.1]}
14... Ng4 {[%clk 0:02:52.5]} 15. Nxg4 {[%clk 0:04:06.1]} 15... Bxf4 {[%clk
0:02:41.1]} 16. exf4 {[%clk 0:04:04.3]} 16... Qd6 {[%clk 0:02:24.1]} 17. Ne5
{[%clk 0:04:01.1]} 17... Rac8 {[%clk 0:02:10.9]} 18. Rc1 {[%clk 0:03:57.8]}
18... c5 {[%clk 0:02:06.9]} 19. dxc5 {[%clk 0:03:54.6]} 19... Rxc5 {[%clk
0:02:03.1]} 20. d4 {[%clk 0:03:52.3]} 20... Rcc8 {[%clk 0:01:45]} 21. Na4 {[%clk
0:03:50.2]} 21... b5 {[%clk 0:01:35.9]} 22. Nc5 {[%clk 0:03:46.5]} 22... a5
{[%clk 0:01:32.5]} 23. b4 {[%clk 0:03:43.1]} 23... a4 {[%clk 0:01:30.2]} 24. Qe2
{[%clk 0:03:33.7]} 24... f6 {[%clk 0:01:08.7]} 25. Nxg6 {[%clk 0:03:31.4]} 25...
Rf7 {[%clk 0:01:02.4]} 26. Qxh5 {[%clk 0:03:29.2]} 1-0

[Event "Live Chess"]
[Site "Chess.com"]
[Date "2023.05.21"]
[Round "-"]
[White "yeetpizza74"]
[Black "Man-Del-Brot"]
[Result "0-1"]
[WhiteElo "480"]
[BlackElo "1043"]
[TimeControl "300"]
[EndTime "2:44:18 PDT"]
[Termination "Man-Del-Brot won by checkmate"]

1. e4 {[%clk 0:04:58.2]} 1... e5 {[%clk 0:04:57.7]} 2. Nf3 {[%clk 0:04:57]} 2...
Nc6 {[%clk 0:04:56.3]} 3. Bc4 {[%clk 0:04:55.7]} 3... f5 {[%clk 0:04:54.7]} 4.
exf5 {[%clk 0:04:42.5]} 4... e4 {[%clk 0:04:50.8]} 5. Nd4 {[%clk 0:04:27.2]}
5... Nxd4 {[%clk 0:04:45.8]} 6. d3 {[%clk 0:04:24.8]} 6... Nf6 {[%clk
0:04:42.5]} 7. Bf4 {[%clk 0:04:18.1]} 7... d5 {[%clk 0:04:39.2]} 8. Bb5+ {[%clk
0:04:12.2]} 8... Nxb5 {[%clk 0:04:32.9]} 9. dxe4 {[%clk 0:04:11.2]} 9... Be7
{[%clk 0:03:10.2]} 10. Be5 {[%clk 0:04:03.4]} 10... O-O {[%clk 0:03:06.7]} 11.
Bxf6 {[%clk 0:04:01.2]} 11... Bxf6 {[%clk 0:03:05.3]} 12. O-O {[%clk 0:03:59.8]}
12... Be5 {[%clk 0:02:56.9]} 13. c3 {[%clk 0:03:57.8]} 13... Qh4 {[%clk
0:02:52.2]} 14. g3 {[%clk 0:03:55.2]} 14... Qxe4 {[%clk 0:02:44.5]} 15. Re1
{[%clk 0:03:44.6]} 15... Qxf5 {[%clk 0:02:41.7]} 16. f4 {[%clk 0:03:40.8]} 16...
Bd6 {[%clk 0:02:36.7]} 17. Nd2 {[%clk 0:03:38.3]} 17... Qh3 {[%clk 0:02:34.9]}
18. b3 {[%clk 0:03:27.5]} 18... Bc5+ {[%clk 0:02:29.5]} 19. Kh1 {[%clk
0:03:19.7]} 19... Nxc3 {[%clk 0:01:57.1]} 20. Qc2 {[%clk 0:03:07]} 20... d4
{[%clk 0:01:52.7]} 21. Ne4 {[%clk 0:02:58.3]} 21... Bf5 {[%clk 0:01:48.4]} 22.
a3 {[%clk 0:02:45.9]} 22... Rae8 {[%clk 0:01:27.8]} 23. b4 {[%clk 0:02:42.6]}
23... Rxe4 {[%clk 0:01:25.7]} 24. Rxe4 {[%clk 0:02:40.9]} 24... Bxe4+ {[%clk
0:01:24.2]} 25. Qxe4 {[%clk 0:02:36.1]} 25... Nxe4 {[%clk 0:01:22.5]} 26. bxc5
{[%clk 0:02:34.5]} 26... c6 {[%clk 0:01:20.5]} 27. Re1 {[%clk 0:02:32.1]} 27...
Nf2+ {[%clk 0:01:16.6]} 28. Kg1 {[%clk 0:02:28.9]} 28... Ng4 {[%clk 0:01:11.3]}
29. Re4 {[%clk 0:02:23.5]} 29... Qxh2+ {[%clk 0:01:06.2]} 30. Kf1 {[%clk
0:02:21.9]} 30... Qf2# {[%clk 0:01:04.7]} 0-1

[Event "Live Chess"]
[Site "Chess.com"]
[Date "2023.05.21"]
[Round "-"]
[White "LiamBellwood"]
[Black "elephantgerrald"]
[Result "1-0"]
[WhiteElo "1959"]
[BlackElo "688"]
[TimeControl "300"]
[EndTime "2:44:21 PDT"]
[Termination "LiamBellwood won by checkmate"]

1. d4 {[%clk 0:04:59.5]} 1... d5 {[%clk 0:04:58.8]} 2. Nc3 {[%clk 0:04:59.4]}
2... Nf6 {[%clk 0:04:56.5]} 3. Bf4 {[%clk 0:04:59.1]} 3... Nc6 {[%clk
0:04:55.4]} 4. Nb5 {[%clk 0:04:58.4]} 4... e5 {[%clk 0:04:50.6]} 5. Bxe5 {[%clk
0:04:55.3]} 5... Nxe5 {[%clk 0:04:49.2]} 6. dxe5 {[%clk 0:04:55.2]} 6... Ne4
{[%clk 0:04:45.7]} 7. Qxd5 {[%clk 0:04:53.7]} 7... Qxd5 {[%clk 0:04:42.1]} 8.
Nxc7+ {[%clk 0:04:53.1]} 8... Kd7 {[%clk 0:04:41]} 9. Nxd5 {[%clk 0:04:53]} 9...
Bb4+ {[%clk 0:04:37.8]} 10. Nxb4 {[%clk 0:04:51.8]} 10... a5 {[%clk 0:04:33.6]}
11. O-O-O+ {[%clk 0:04:49.7]} 11... Ke6 {[%clk 0:04:31.4]} 12. Nd3 {[%clk
0:04:47.5]} 12... b6 {[%clk 0:04:28.6]} 13. Nf3 {[%clk 0:04:42.2]} 13... Ba6
{[%clk 0:04:26.8]} 14. e3 {[%clk 0:04:40.2]} 14... Bxd3 {[%clk 0:04:23.3]} 15.
Bxd3 {[%clk 0:04:39.2]} 15... Nxf2 {[%clk 0:04:21.7]} 16. Bc4+ {[%clk
0:04:38.4]} 16... Kf5 {[%clk 0:04:18.4]} 17. Nd4+ {[%clk 0:04:31.1]} 17... Ke4
{[%clk 0:04:13.7]} 18. Bd3+ {[%clk 0:04:19.3]} 18... Kxe5 {[%clk 0:04:06.5]} 19.
Rhf1 {[%clk 0:04:00.9]} 19... Nxd1 {[%clk 0:04:04.2]} 20. Rf5+ {[%clk
0:03:59.9]} 20... Kd6 {[%clk 0:04:02.4]} 21. Kxd1 {[%clk 0:03:59.8]} 21... Rae8
{[%clk 0:03:59.5]} 22. Rxf7 {[%clk 0:03:56.4]} 22... Rxe3 {[%clk 0:03:57.8]} 23.
Nf5+ {[%clk 0:03:55.8]} 23... Ke6 {[%clk 0:03:55.8]} 24. Re7+ {[%clk 0:03:55.2]}
24... Kf6 {[%clk 0:03:50.6]} 25. Rxe3 {[%clk 0:03:55.1]} 25... Kg5 {[%clk
0:03:47.6]} 26. Rg3+ {[%clk 0:03:52.8]} 26... Kf4 {[%clk 0:03:45.8]} 27. Rxg7
{[%clk 0:03:51.3]} 27... h5 {[%clk 0:03:42.6]} 28. Ke2 {[%clk 0:03:49.3]} 28...
h4 {[%clk 0:03:41.4]} 29. g3+ {[%clk 0:03:48.1]} 29... hxg3 {[%clk 0:03:40.2]}
30. hxg3+ {[%clk 0:03:48]} 30... Ke5 {[%clk 0:03:39]} 31. Re7+ {[%clk
0:03:45.2]} 31... Kf6 {[%clk 0:03:37.8]} 32. Rb7 {[%clk 0:03:42.8]} 32... Re8+
{[%clk 0:03:36]} 33. Kf3 {[%clk 0:03:41.1]} 33... Re6 {[%clk 0:03:29.1]} 34. g4
{[%clk 0:03:40]} 34... Kg5 {[%clk 0:03:26.4]} 35. Ng3 {[%clk 0:03:30.4]} 35...
Rf6+ {[%clk 0:03:24.2]} 36. Kg2 {[%clk 0:03:27.9]} 36... Rf4 {[%clk 0:03:19.3]}
37. Rg7+ {[%clk 0:03:25.9]} 37... Kh4 {[%clk 0:03:16.1]} 38. Nf5+ {[%clk
0:03:22.5]} 38... Rxf5 {[%clk 0:03:09.1]} 39. gxf5 {[%clk 0:03:20.3]} 39... Kh5
{[%clk 0:03:06.8]} 40. f6 {[%clk 0:03:19.4]} 40... Kh6 {[%clk 0:03:06.1]} 41.
Rg6+ {[%clk 0:03:17]} 41... Kh7 {[%clk 0:03:04.2]} 42. f7 {[%clk 0:03:16.9]}
42... Kh8 {[%clk 0:03:02.4]} 43. f8=Q+ {[%clk 0:03:16.1]} 43... Kh7 {[%clk
0:02:58.6]} 44. Qg8# {[%clk 0:03:16]} 1-0

[Event "Live Chess"]
[Site "Chess.com"]
[Date "2023.05.21"]
[Round "-"]
[White "Singapourfeuj"]
[Black "mliszewski"]
[Result "1-0"]
[WhiteElo "2195"]
[BlackElo "1814"]
[TimeControl "300"]
[EndTime "2:44:27 PDT"]
[Termination "Singapourfeuj won by resignation"]

1. d4 {[%clk 0:04:58.8]} 1... d5 {[%clk 0:04:57.9]} 2. c4 {[%clk 0:04:56.3]}
2... e5 {[%clk 0:04:56.5]} 3. cxd5 {[%clk 0:04:54.8]} 3... Qxd5 {[%clk
0:04:55.1]} 4. Nf3 {[%clk 0:04:53.9]} 4... e4 {[%clk 0:04:53.5]} 5. Nc3 {[%clk
0:04:52.5]} 5... Bb4 {[%clk 0:04:51]} 6. Ne5 {[%clk 0:04:50.9]} 6... c5 {[%clk
0:04:42.6]} 7. Qa4+ {[%clk 0:04:49]} 7... Nc6 {[%clk 0:04:38.3]} 8. e3 {[%clk
0:04:45.7]} 8... Bxc3+ {[%clk 0:04:30.5]} 9. bxc3 {[%clk 0:04:43.3]} 9... Ne7
{[%clk 0:04:28.1]} 10. Bc4 {[%clk 0:04:39.8]} 10... b5 {[%clk 0:04:07.6]} 11.
Bxd5 {[%clk 0:04:34.9]} 11... bxa4 {[%clk 0:04:06.5]} 12. Bxc6+ {[%clk
0:04:33.8]} 12... Nxc6 {[%clk 0:04:05.7]} 13. Nxc6 {[%clk 0:04:32.8]} 13... O-O
{[%clk 0:04:04.9]} 14. Ne7+ {[%clk 0:04:31.1]} 14... Kh8 {[%clk 0:04:03.2]} 15.
Nxc8 {[%clk 0:04:30.1]} 15... Raxc8 {[%clk 0:04:02.6]} 16. O-O {[%clk
0:04:29.2]} 16... cxd4 {[%clk 0:04:01.7]} 17. cxd4 {[%clk 0:04:28.3]} 17... f5
{[%clk 0:04:01]} 18. Ba3 {[%clk 0:04:26.7]} 18... Rfd8 {[%clk 0:03:59.4]} 19.
Rfc1 {[%clk 0:04:25.5]} 19... Rb8 {[%clk 0:03:58.1]} 20. Rab1 {[%clk 0:04:24.6]}
20... g6 {[%clk 0:03:50.8]} 21. g3 {[%clk 0:04:23.3]} 21... Kg7 {[%clk
0:03:49.7]} 22. h4 {[%clk 0:04:21]} 22... Kf6 {[%clk 0:03:48.8]} 23. Rc6+ {[%clk
0:04:14.4]} 23... Kg7 {[%clk 0:03:42.7]} 24. Rc7+ {[%clk 0:04:09.9]} 24... Kg8
{[%clk 0:03:39.6]} 25. Rxb8 {[%clk 0:04:03.3]} 25... Rxb8 {[%clk 0:03:39.5]} 26.
Rxa7 {[%clk 0:04:01.8]} 26... Rb1+ {[%clk 0:03:37.3]} 27. Kg2 {[%clk 0:04:00.7]}
27... Ra1 {[%clk 0:03:35.4]} 28. Rxa4 {[%clk 0:03:58.8]} 28... Rxa2 {[%clk
0:03:34.9]} 29. Ra7 {[%clk 0:03:56.3]} 29... h6 {[%clk 0:03:30]} 30. Bc5 {[%clk
0:03:54.7]} 30... Rc2 {[%clk 0:03:27.8]} 31. Bd6 {[%clk 0:03:50.2]} 31... g5
{[%clk 0:03:26]} 32. Be5 {[%clk 0:03:47.7]} 32... gxh4 {[%clk 0:03:13.5]} 33.
gxh4 {[%clk 0:03:46.2]} 33... Rc6 {[%clk 0:03:12.7]} 34. h5 {[%clk 0:03:42.9]}
34... Rc1 {[%clk 0:03:03.1]} 35. Bf4 {[%clk 0:03:37]} 1-0

[Event "Live Chess"]
[Site "Chess.com"]
[Date "2023.05.21"]
[Round "-"]
[White "ms_lilley"]
[Black "worldchessleaguelive"]
[Result "0-1"]
[WhiteElo "606"]
[BlackElo "1338"]
[TimeControl "300"]
[EndTime "2:44:39 PDT"]
[Termination "worldchessleaguelive won by checkmate"]

1. d4 {[%clk 0:04:56.6]} 1... d5 {[%clk 0:04:59]} 2. e3 {[%clk 0:04:55.5]} 2...
Nf6 {[%clk 0:04:55.3]} 3. h3 {[%clk 0:04:54.1]} 3... e6 {[%clk 0:04:51.8]} 4.
Nf3 {[%clk 0:04:52.3]} 4... c5 {[%clk 0:04:50.8]} 5. c3 {[%clk 0:04:50.4]} 5...
c4 {[%clk 0:04:49.7]} 6. b4 {[%clk 0:04:43.3]} 6... a6 {[%clk 0:04:44.7]} 7. a4
{[%clk 0:04:41.7]} 7... Be7 {[%clk 0:04:37.3]} 8. Ba3 {[%clk 0:04:34.5]} 8...
O-O {[%clk 0:04:35.3]} 9. a5 {[%clk 0:04:32.6]} 9... b5 {[%clk 0:04:28.3]} 10.
Be2 {[%clk 0:04:23]} 10... Bb7 {[%clk 0:04:24.6]} 11. Ne5 {[%clk 0:04:20.1]}
11... Nbd7 {[%clk 0:04:22.6]} 12. Nxd7 {[%clk 0:04:14.1]} 12... Qxd7 {[%clk
0:04:20.3]} 13. O-O {[%clk 0:04:12.3]} 13... Ne4 {[%clk 0:04:17]} 14. Nd2 {[%clk
0:04:04.8]} 14... Nxc3 {[%clk 0:04:14.5]} 15. Qc2 {[%clk 0:03:57.9]} 15... Nxe2+
{[%clk 0:04:13.1]} 16. Kh1 {[%clk 0:03:50.3]} 16... Bh4 {[%clk 0:03:59.1]} 17.
Nf3 {[%clk 0:03:46.3]} 17... Ng3+ {[%clk 0:03:54.1]} 18. fxg3 {[%clk 0:03:43.7]}
18... Bxg3 {[%clk 0:03:52.8]} 19. Ng5 {[%clk 0:03:23.4]} 19... g6 {[%clk
0:03:39.5]} 20. Qe2 {[%clk 0:03:20.7]} 20... f6 {[%clk 0:03:28]} 21. Qg4 {[%clk
0:03:12.3]} 21... fxg5 {[%clk 0:03:23.1]} 22. Rxf8+ {[%clk 0:03:08.5]} 22...
Rxf8 {[%clk 0:03:20.3]} 23. Qxg3 {[%clk 0:03:05.2]} 23... Qe7 {[%clk 0:03:13.6]}
24. Qg4 {[%clk 0:02:42.2]} 24... Bc8 {[%clk 0:03:09.3]} 25. Kh2 {[%clk
0:02:23.2]} 25... e5 {[%clk 0:03:07.6]} 26. Qg3 {[%clk 0:02:19.4]} 26... exd4
{[%clk 0:02:58.2]} 27. exd4 {[%clk 0:02:08.1]} 27... Qf6 {[%clk 0:02:35.9]} 28.
Re1 {[%clk 0:01:53.1]} 28... Qf4 {[%clk 0:02:26]} 29. Re7 {[%clk 0:01:44.2]}
29... Qxg3+ {[%clk 0:02:03.9]} 30. Kxg3 {[%clk 0:01:42.2]} 30... Bf5 {[%clk
0:01:52.3]} 31. Bc1 {[%clk 0:01:31.3]} 31... Be4 {[%clk 0:01:31.3]} 32. Bxg5
{[%clk 0:01:29.2]} 32... c3 {[%clk 0:01:18.1]} 33. Bh6 {[%clk 0:01:27.2]} 33...
c2 {[%clk 0:00:56.7]} 34. Bc1 {[%clk 0:01:22.4]} 34... Rf1 {[%clk 0:00:48.7]}
35. Ra7 {[%clk 0:01:20.2]} 35... Rxc1 {[%clk 0:00:46.2]} 36. Ra8+ {[%clk
0:01:18.3]} 36... Kg7 {[%clk 0:00:42.8]} 37. Ra7+ {[%clk 0:01:17]} 37... Kh6
{[%clk 0:00:41.7]} 38. Rxa6 {[%clk 0:01:15.7]} 38... Rd1 {[%clk 0:00:38.2]} 39.
Ra8 {[%clk 0:01:14.4]} 39... c1=Q {[%clk 0:00:36.1]} 40. Rd8 {[%clk 0:01:09.8]}
40... Qe3+ {[%clk 0:00:34.8]} 41. Kh2 {[%clk 0:01:05.3]} 41... Qf4+ {[%clk
0:00:33.7]} 42. g3 {[%clk 0:01:03.5]} 42... Qf2# {[%clk 0:00:32.3]} 0-1

[Event "Live Chess"]
[Site "Chess.com"]
[Date "2023.05.21"]
[Round "-"]
[White "Greenbecker"]
[Black "SupremeTactician"]
[Result "1/2-1/2"]
[WhiteElo "1644"]
[BlackElo "2254"]
[TimeControl "300"]
[EndTime "2:44:48 PDT"]
[Termination "Game drawn by agreement"]

1. e4 {[%clk 0:04:57.9]} 1... e5 {[%clk 0:04:59]} 2. Nf3 {[%clk 0:04:56.9]} 2...
Nc6 {[%clk 0:04:58.5]} 3. Bb5 {[%clk 0:04:55.2]} 3... a6 {[%clk 0:04:57.5]} 4.
Ba4 {[%clk 0:04:54]} 4... Nf6 {[%clk 0:04:57.1]} 5. O-O {[%clk 0:04:51.7]} 5...
Nxe4 {[%clk 0:04:56.6]} 6. Re1 {[%clk 0:04:50.2]} 6... Be7 {[%clk 0:04:56]} 7.
Rxe4 {[%clk 0:04:47.7]} 7... b5 {[%clk 0:04:55.4]} 8. Bb3 {[%clk 0:04:45.1]}
8... d5 {[%clk 0:04:54.9]} 9. Re1 {[%clk 0:04:40.3]} 9... e4 {[%clk 0:04:54.5]}
10. Nc3 {[%clk 0:04:16.7]} 10... exf3 {[%clk 0:04:41.7]} 11. Qxf3 {[%clk
0:04:15]} 11... Be6 {[%clk 0:04:40.7]} 12. d3 {[%clk 0:03:55]} 12... Nd4 {[%clk
0:04:36.3]} 13. Qd1 {[%clk 0:03:53]} 13... Nxb3 {[%clk 0:04:34.9]} 14. axb3
{[%clk 0:03:51.5]} 14... O-O {[%clk 0:04:33.8]} 15. Qf3 {[%clk 0:03:38.4]} 15...
c6 {[%clk 0:04:30.5]} 16. Bf4 {[%clk 0:03:31.4]} 16... Bf6 {[%clk 0:04:28.7]}
17. Be5 {[%clk 0:03:29.1]} 17... Bxe5 {[%clk 0:04:27.1]} 18. Rxe5 {[%clk
0:03:27.9]} 18... Qd6 {[%clk 0:04:27]} 19. Rae1 {[%clk 0:03:22.2]} 19... Rae8
{[%clk 0:04:26.1]} 20. d4 {[%clk 0:03:18.6]} 20... f6 {[%clk 0:04:22.7]} 21.
R5e3 {[%clk 0:03:10.4]} 21... Bf7 {[%clk 0:04:17.2]} 22. Rxe8 {[%clk 0:03:04.6]}
22... Rxe8 {[%clk 0:04:17.1]} 23. Rxe8+ {[%clk 0:02:56.1]} 23... Bxe8 {[%clk
0:04:17]} 24. Qe3 {[%clk 0:02:53.8]} 24... Kf7 {[%clk 0:04:15.2]} 25. h3 {[%clk
0:02:48.9]} 25... Qe6 {[%clk 0:04:13]} 26. Qd2 {[%clk 0:02:43.1]} 26... h6
{[%clk 0:03:55.5]} 27. Ne2 {[%clk 0:02:38.7]} 27... Qe4 {[%clk 0:03:52.3]} 28.
c3 {[%clk 0:02:31.1]} 28... Bd7 {[%clk 0:03:46.9]} 29. Ng3 {[%clk 0:02:28.7]}
29... Qb1+ {[%clk 0:03:44]} 30. Kh2 {[%clk 0:02:26.8]} 30... g5 {[%clk
0:03:42.6]} 31. Qe2 {[%clk 0:02:12.8]} 31... Qg6 {[%clk 0:03:38.5]} 32. Qh5
{[%clk 0:02:00.6]} 32... Qxh5 {[%clk 0:03:36.1]} 33. Nxh5 {[%clk 0:01:59.8]}
33... f5 {[%clk 0:03:35.3]} 34. Ng3 {[%clk 0:01:58.7]} 34... f4 {[%clk 0:03:34]}
35. Ne2 {[%clk 0:01:55.9]} 35... Kf6 {[%clk 0:03:32]} 36. f3 {[%clk 0:01:53.9]}
36... Bf5 {[%clk 0:03:30.3]} 37. Kg1 {[%clk 0:01:45.8]} 37... Bc2 {[%clk
0:03:29.1]} 38. Nc1 {[%clk 0:01:44.7]} 38... Kf5 {[%clk 0:03:26.4]} 39. Kf2
{[%clk 0:01:43.4]} 39... h5 {[%clk 0:03:25.4]} 40. Ke2 {[%clk 0:01:38.5]} 40...
g4 {[%clk 0:03:21.4]} 41. hxg4+ {[%clk 0:01:33.3]} 41... hxg4 {[%clk 0:03:18.9]}
42. fxg4+ {[%clk 0:01:31.3]} 42... Kxg4 {[%clk 0:03:17.9]} 43. Kf2 {[%clk
0:01:25.1]} 43... Bd1 {[%clk 0:03:13.8]} 44. b4 {[%clk 0:01:22.3]} 44... Bc2
{[%clk 0:03:09.3]} 45. Ne2 {[%clk 0:01:15.7]} 45... Bd3 {[%clk 0:03:07.2]} 46.
Nc1 {[%clk 0:01:13.8]} 46... Be4 {[%clk 0:03:06.1]} 47. Nb3 {[%clk 0:01:08.3]}
47... Bf5 {[%clk 0:03:02.8]} 48. Nc5 {[%clk 0:01:06.4]} 48... Bc8 {[%clk
0:03:02]} 49. Nd3 {[%clk 0:00:58.6]} 1/2-1/2

[Event "Live Chess"]
[Site "Chess.com"]
[Date "2023.05.21"]
[Round "-"]
[White "Duke_of_Bebington"]
[Black "martynstanley"]
[Result "1-0"]
[WhiteElo "1587"]
[BlackElo "1014"]
[TimeControl "300"]
[EndTime "2:44:59 PDT"]
[Termination "Duke_of_Bebington won by checkmate"]

1. e4 {[%clk 0:04:57.8]} 1... e6 {[%clk 0:04:59.2]} 2. d4 {[%clk 0:04:56.4]}
2... d5 {[%clk 0:04:58.5]} 3. Nd2 {[%clk 0:04:55.9]} 3... c5 {[%clk 0:04:57.8]}
4. c3 {[%clk 0:04:54.2]} 4... Nc6 {[%clk 0:04:56.8]} 5. Ngf3 {[%clk 0:04:46.9]}
5... Qb6 {[%clk 0:04:55.5]} 6. Bd3 {[%clk 0:04:31.4]} 6... Nh6 {[%clk
0:04:54.2]} 7. h3 {[%clk 0:04:23.8]} 7... f5 {[%clk 0:04:53.4]} 8. exf5 {[%clk
0:04:17.8]} 8... Nxf5 {[%clk 0:04:51.8]} 9. Bxf5 {[%clk 0:04:16.1]} 9... exf5
{[%clk 0:04:50.8]} 10. Qe2+ {[%clk 0:04:14.7]} 10... Be7 {[%clk 0:04:48.6]} 11.
dxc5 {[%clk 0:04:08.7]} 11... Qxc5 {[%clk 0:04:46.7]} 12. Nb3 {[%clk 0:04:06.1]}
12... Qd6 {[%clk 0:04:45.1]} 13. O-O {[%clk 0:04:02.1]} 13... O-O {[%clk
0:04:44.2]} 14. Nbd4 {[%clk 0:04:00.5]} 14... Nxd4 {[%clk 0:04:42.5]} 15. Nxd4
{[%clk 0:03:58.6]} 15... b6 {[%clk 0:04:41.8]} 16. Re1 {[%clk 0:03:51.8]} 16...
Bb7 {[%clk 0:04:35.9]} 17. Qxe7 {[%clk 0:03:48.4]} 17... Qxe7 {[%clk 0:04:34.7]}
18. Rxe7 {[%clk 0:03:46.5]} 18... Rab8 {[%clk 0:04:31.2]} 19. Bf4 {[%clk
0:03:40.2]} 19... Rf7 {[%clk 0:04:27.4]} 20. Rxf7 {[%clk 0:03:36.4]} 20... Kxf7
{[%clk 0:04:25.7]} 21. Bxb8 {[%clk 0:03:36]} 21... g6 {[%clk 0:04:23.5]} 22.
Bxa7 {[%clk 0:03:35]} 22... b5 {[%clk 0:04:21.5]} 23. Re1 {[%clk 0:03:32.3]}
23... Kf6 {[%clk 0:04:19.1]} 24. Nxb5 {[%clk 0:03:30.4]} 24... Bc6 {[%clk
0:04:17.5]} 25. Nd4 {[%clk 0:03:26.6]} 25... Bd7 {[%clk 0:04:13]} 26. Bc5 {[%clk
0:03:24.4]} 26... h6 {[%clk 0:04:11.5]} 27. a4 {[%clk 0:03:20]} 27... Bxa4
{[%clk 0:04:09.4]} 28. Re6+ {[%clk 0:03:15.5]} 28... Kg5 {[%clk 0:04:08]} 29.
h4+ {[%clk 0:03:12.3]} 29... Kxh4 {[%clk 0:04:06.1]} 30. Rxg6 {[%clk 0:03:09.6]}
30... Bd1 {[%clk 0:04:01]} 31. Nxf5+ {[%clk 0:03:04.6]} 31... Kh5 {[%clk
0:03:57.7]} 32. Rd6 {[%clk 0:02:53.1]} 32... Bc2 {[%clk 0:03:55.2]} 33. Rxd5
{[%clk 0:02:50.6]} 33... Bxf5 {[%clk 0:03:54.1]} 34. Rxf5+ {[%clk 0:02:49.2]}
34... Kg6 {[%clk 0:03:53.4]} 35. g4 {[%clk 0:02:46.7]} 35... h5 {[%clk
0:03:51.7]} 36. f3 {[%clk 0:02:45.1]} 36... hxg4 {[%clk 0:03:50.6]} 37. fxg4
{[%clk 0:02:44.1]} 37... Kg7 {[%clk 0:03:49]} 38. b4 {[%clk 0:02:43.7]} 38...
Kg6 {[%clk 0:03:48.2]} 39. b5 {[%clk 0:02:43.6]} 39... Kg7 {[%clk 0:03:47.5]}
40. b6 {[%clk 0:02:43.5]} 40... Kg6 {[%clk 0:03:46]} 41. b7 {[%clk 0:02:43.4]}
41... Kg7 {[%clk 0:03:45.3]} 42. b8=Q {[%clk 0:02:43.3]} 42... Kg6 {[%clk
0:03:44.8]} 43. Qg8+ {[%clk 0:02:40]} 43... Kh6 {[%clk 0:03:43.3]} 44. Rh5#
{[%clk 0:02:39.8]} 1-0